bitfinex/quotes_BTCUSD_20250508
["timestamp","ask_amount","ask_price","bid_price","bid_amount"]
[1746692411500,49.43573217,99666.0,99665.0,0.64133917]
[1746692411702,49.43573217,99666.0,99665.0,0.66003858]
[1746692411850,49.43573217,99666.0,99665.0,1.06003858]
[1746692412046,49.43573217,99666.0,99665.0,6.11003858]
[1746692412481,49.43673217,99666.0,99665.0,6.11003858]
[1746692413226,49.43873217,99666.0,99665.0,6.11003858]
[1746692415474,49.43873217,99666.0,99665.0,6.14548942]
[1746692416155,49.43873217,99666.0,99665.0,6.11003858]
[1746692417346,49.43873217,99666.0,99665.0,5.77003858]
[1746692417840,49.43873217,99666.0,99665.0,6.13127858]
[1746692420164,49.43873217,99666.0,99665.0,6.47127858]
[1746692420908,49.43873217,99666.0,99665.0,6.26768856]
[1746692422241,49.43873217,99666.0,99665.0,6.46836081]
[1746692422420,49.43873217,99666.0,99665.0,6.50381165]
[1746692423440,49.43873217,99666.0,99665.0,6.46836081]
[1746692425503,49.46993217,99666.0,99665.0,4.79021166]
[1746692425646,49.46993217,99666.0,99665.0,4.72441166]
[1746692425854,49.43873217,99666.0,99665.0,4.82507858]
[1746692430161,49.45423217,99666.0,99665.0,4.82507858]
[1746692430342,49.47053217,99666.0,99665.0,4.82507858]
[1746692431175,49.45423217,99666.0,99665.0,4.82507858]
[1746692431462,49.43873217,99666.0,99665.0,4.82507858]
[1746692431876,49.47043217,99666.0,99665.0,4.82507858]
[1746692433145,49.47043217,99666.0,99665.0,4.62440633]
[1746692433349,49.47043217,99666.0,99665.0,0.77993941]
[1746692434006,49.43873217,99666.0,99665.0,5.93060633]
[1746692436237,49.43833217,99666.0,99665.0,5.93060633]
[1746692438437,49.43833217,99666.0,99665.0,6.27060633]
[1746692439055,49.43331391,99666.0,99665.0,6.27060633]
[1746692439428,49.39175565,99666.0,99665.0,6.27060633]
[1746692439986,49.38673739,99666.0,99665.0,6.27060633]
[1746692440286,49.38171913,99666.0,99665.0,6.27060633]
[1746692443999,48.43989023,99666.0,99665.0,6.31694718]
[1746692444371,46.13951534,99666.0,99665.0,6.74365335]
[1746692444543,45.92185192,99666.0,99665.0,6.83410735]
[1746692444754,45.80443818,99666.0,99665.0,6.83410735]
[1746692444958,45.59605572,99666.0,99665.0,6.83410735]
[1746692445312,43.58052274,99666.0,99665.0,9.10500735]
[1746692445518,42.78601999,99666.0,99665.0,9.11397018]
[1746692445714,42.78601999,99666.0,99665.0,9.01827018]
[1746692445715,42.78100219,99666.0,99665.0,9.01827018]
[1746692445971,42.73082411,99666.0,99665.0,9.01327018]
[1746692446268,42.64250363,99666.0,99665.0,9.00827018]
[1746692446479,37.95714538,99666.0,99665.0,9.01327018]
[1746692446690,37.94727538,99666.0,99665.0,9.01927018]
[1746692446905,37.85835292,99666.0,99665.0,8.91927018]
[1746692447062,37.81015292,99666.0,99665.0,8.95893018]
[1746692447244,35.91867512,99666.0,99665.0,8.95893018]
[1746692447465,33.78441512,99666.0,99665.0,8.90893018]
[1746692447698,33.72921924,99666.0,99665.0,8.60893018]
[1746692447922,32.96664672,99666.0,99665.0,8.60893018]
[1746692448241,32.88260892,99666.0,99665.0,8.47963866]
[1746692448448,32.82841433,99666.0,99665.0,8.47963866]
[1746692448809,32.66865973,99666.0,99665.0,8.77963866]
[1746692449000,32.64443973,99666.0,99665.0,8.72963866]
[1746692449277,32.09332727,99666.0,99665.0,8.77963866]
[1746692449616,32.03820947,99666.0,99665.0,8.77963866]
[1746692449817,31.98810947,99666.0,99665.0,8.77963866]
[1746692450015,31.98309167,99666.0,99665.0,8.47963866]
[1746692450215,31.93391488,99666.0,99665.0,8.47963866]
[1746692450419,31.87972029,99666.0,99665.0,8.42963866]
[1746692450620,31.46142029,99666.0,99665.0,7.73273866]
[1746692450819,31.40722717,99666.0,99665.0,7.73273866]
[1746692451020,31.35805038,99666.0,99665.0,7.73273866]
[1746692451240,31.30385726,99666.0,99665.0,7.73273866]
[1746692451451,31.25468047,99666.0,99665.0,7.73273866]
[1746692451651,31.20048735,99666.0,99665.0,7.73273866]
[1746692451857,31.13168735,99666.0,99665.0,7.73273866]
[1746692452175,31.05794056,99666.0,99665.0,7.73273866]
[1746692452319,30.96863312,99666.0,99665.0,7.73273866]
[1746692452519,30.96863312,99666.0,99665.0,7.49333077]
[1746692452742,30.91444,99666.0,99665.0,7.49333077]
[1746692453015,30.83014889,99666.0,99665.0,7.49333077]
[1746692453218,30.75693256,99666.0,99665.0,7.49333077]
[1746692453468,30.67745577,99666.0,99665.0,7.89333077]
[1746692453633,30.57853944,99666.0,99665.0,7.89333077]
[1746692454034,30.50736499,99666.0,99665.0,7.89333077]
[1746692454230,30.10736499,99666.0,99665.0,7.89333077]
[1746692454457,30.07778866,99666.0,99665.0,7.89333077]
[1746692454649,30.00268866,99666.0,99665.0,7.89333077]
[1746692454857,29.99767233,99666.0,99665.0,7.89333077]
[1746692455109,29.33720233,99666.0,99665.0,7.89333077]
[1746692455298,29.28300921,99666.0,99665.0,7.89333077]
[1746692455647,29.22881609,99666.0,99665.0,7.8276246]
[1746692455870,24.93715609,99666.0,99665.0,7.89333077]
[1746692456069,24.90986976,99666.0,99665.0,7.89333077]
[1746692456308,24.85469011,99666.0,99665.0,7.89333077]
[1746692456506,24.67604931,99666.0,99665.0,7.89333077]
[1746692456736,24.58763626,99666.0,99665.0,7.89333077]
[1746692456934,24.52653626,99666.0,99665.0,7.89333077]
[1746692457073,24.46337294,99666.0,99665.0,7.89333077]
[1746692457275,24.40819329,99666.0,99665.0,7.89333077]
[1746692457544,24.35802997,99666.0,99665.0,7.89333077]
[1746692457718,24.252687,99666.0,99665.0,7.89333077]
[1746692457918,24.19750735,99666.0,99665.0,2.84333077]
[1746692458219,24.14734403,99666.0,99665.0,2.83436794]
[1746692458427,24.07009438,99666.0,99665.0,7.88436794]
[1746692458625,24.01993222,99666.0,99665.0,7.88436794]
[1746692458807,23.91459169,99666.0,99665.0,7.89325732]
[1746692459018,23.86442953,99666.0,99665.0,7.89325732]
[1746692459179,23.40925116,99666.0,99665.0,7.89325732]
[1746692459383,23.34977287,99666.0,99665.0,7.89325732]
[1746692459590,23.2945945,99666.0,99665.0,7.89325732]
[1746692459786,23.24443234,99666.0,99665.0,2.84325732]
[1746692460092,23.13909181,99666.0,99665.0,7.88436794]
[1746692460293,23.1340756,99666.0,99665.0,7.89325732]
[1746692460719,23.1340756,99666.0,99665.0,7.86007848]
[1746692460918,23.1340756,99666.0,99665.0,7.89325732]
[1746692461288,23.1340756,99666.0,99665.0,7.91183343]
[1746692462225,22.42168116,99666.0,99665.0,7.91183343]
[1746692462419,22.36136495,99666.0,99665.0,7.91183343]
[1746692462869,22.35634874,99666.0,99665.0,7.91183343]
[1746692463069,21.56516321,99666.0,99665.0,8.48241343]
[1746692463270,21.53330103,99666.0,99665.0,8.48241343]
[1746692463470,21.53330103,99666.0,99665.0,8.42213343]
[1746692463692,21.52828482,99666.0,99665.0,8.42213343]
[1746692464118,21.52326861,99666.0,99665.0,8.42213343]
[1746692464274,21.12326861,99666.0,99665.0,8.42213343]
[1746692464472,21.1182524,99666.0,99665.0,8.42213343]
[1746692464660,21.1182524,99666.0,99665.0,7.72523343]
[1746692465134,20.65976044,99666.0,99665.0,7.72523343]
[1746692465458,20.65474423,99666.0,99665.0,8.02523343]
[1746692465854,20.39582554,99666.0,99665.0,8.02423343]
[1746692466074,20.39080933,99666.0,99665.0,8.02423343]
[1746692466467,20.12687443,99666.0,99665.0,8.02423343]
[1746692466659,20.12687443,99666.0,99665.0,8.78141343]
[1746692466870,20.08523118,99666.0,99665.0,8.78141343]
[1746692467038,20.0551046,99666.0,99665.0,8.74823459]
[1746692467253,19.77283998,99666.0,99665.0,8.77585063]
[1746692467650,19.76782397,99666.0,99665.0,8.77585063]
[1746692467899,19.7305782,99666.0,99665.0,8.77585063]
[1746692468431,19.72556219,99666.0,99665.0,8.88155063]
[1746692468608,19.72556219,99666.0,99665.0,8.85393459]
[1746692468947,19.00815174,99666.0,99665.0,8.88155063]
[1746692469132,19.00313573,99666.0,99665.0,8.88155063]
[1746692469471,18.34421704,99666.0,99665.0,8.88155063]
[1746692469601,18.33920103,99666.0,99665.0,8.88155063]
[1746692469809,18.28182415,99666.0,99665.0,8.88155063]
[1746692470016,18.27680814,99666.0,99665.0,8.88155063]
[1746692470404,18.27179213,99666.0,99665.0,8.88155063]
[1746692470601,18.16600606,99666.0,99665.0,8.88155063]
[1746692470893,13.29589012,99666.0,99665.0,3.76682819]
[1746692471019,11.92002264,99666.0,99665.0,3.71640648]
[1746692471226,6.76414279,99666.0,99665.0,3.73528557]
[1746692471573,4.1943302,99666.0,99665.0,4.01040648]
[1746692471802,1.34034033,99666.0,99665.0,4.00540648]
[1746692472104,0.999994,99680.0,99665.0,4.00540648]
[1746692472105,0.08034024,99755.0,99742.0,0.34]
[1746692472239,0.01002355,99765.0,99742.0,0.34]
[1746692472240,0.00018868,99763.0,99744.0,0.34]
[1746692472585,0.21052842,99749.0,99746.0,0.34]
[1746692472801,0.21052842,99749.0,99747.0,0.5785207]
[1746692472992,0.21152842,99749.0,99748.0,0.14434459]
[1746692473220,0.21152842,99749.0,99748.0,0.11214459]
[1746692473412,0.21152842,99749.0,99748.0,0.07994459]
[1746692473646,0.20052537,99738.0,99737.0,0.00751198]
[1746692473822,0.20053945,99731.0,99730.0,0.01857611]
[1746692474165,0.20053945,99731.0,99730.0,0.02739988]
[1746692474289,0.14064568,99733.0,99730.0,0.42739988]
[1746692474691,0.14064568,99733.0,99731.0,0.34]
[1746692474891,0.16234568,99733.0,99732.0,0.02740472]
[1746692476031,0.16234568,99733.0,99732.0,0.00882861]
[1746692476383,0.0057,99732.0,99730.0,0.41857611]
[1746692476601,0.21203945,99731.0,99730.0,0.4]
[1746692477021,0.21194932,99731.0,99730.0,0.4]
[1746692477222,0.21194932,99731.0,99730.0,0.40732033]
[1746692477403,0.21194932,99731.0,99730.0,0.42589644]
[1746692478002,0.21594932,99731.0,99730.0,0.42589644]
[1746692479059,0.0255,99731.0,99730.0,0.6264379]
[1746692479259,0.0275,99731.0,99730.0,0.6264379]
[1746692479404,0.006,99731.0,99730.0,1.06710482]
[1746692479613,0.006,99731.0,99730.0,5.71710482]
[1746692480233,0.002,99731.0,99730.0,5.71710482]
[1746692480634,0.004,99731.0,99730.0,6.11710482]
[1746692481435,0.002,99731.0,99730.0,6.11710482]
[1746692481847,0.003,99731.0,99730.0,6.11710482]
[1746692482095,0.003,99731.0,99730.0,3.76240482]
[1746692482293,0.003,99731.0,99730.0,1.18370482]
[1746692483195,0.003,99731.0,99730.0,1.06710482]
[1746692483518,0.003,99731.0,99730.0,1.46790482]
[1746692483731,0.003,99731.0,99730.0,1.1333379]
[1746692483942,0.0181,99731.0,99730.0,1.0968379]
[1746692484146,0.0238,99731.0,99730.0,0.9664379]
[1746692485025,0.003,99731.0,99730.0,1.06710482]
[1746692486888,0.003,99731.0,99730.0,0.9664379]
[1746692487122,0.018,99731.0,99730.0,0.9664379]
[1746692487322,0.003,99731.0,99730.0,0.9664379]
[1746692487751,0.003,99731.0,99730.0,0.94566788]
[1746692488820,0.22583945,99731.0,99730.0,0.74512642]
[1746692489016,0.0253,99731.0,99730.0,0.74512642]
[1746692490302,0.0253,99731.0,99730.0,0.00512642]
[1746692490523,0.0253,99731.0,99729.0,0.00045321]
[1746692490524,0.20054146,99730.0,99729.0,0.00045321]
[1746692490722,0.22154146,99730.0,99729.0,0.00045321]
[1746692491147,0.021,99730.0,99729.0,0.00045321]
[1746692491352,0.021,99730.0,99729.0,0.00475556]
[1746692491759,0.22154146,99730.0,99729.0,0.00475556]
[1746692492090,0.22254146,99730.0,99729.0,0.00475556]
[1746692492615,0.22454146,99730.0,99729.0,0.00045321]
[1746692492809,0.22454146,99730.0,99729.0,0.00479138]
[1746692493040,0.22454146,99730.0,99729.0,0.00045321]
[1746692493250,0.22454146,99730.0,99729.0,0.00479138]
[1746692493453,0.22454146,99730.0,99729.0,0.00045321]
[1746692493649,0.22254146,99730.0,99729.0,0.00479138]
[1746692493853,0.22254146,99730.0,99729.0,0.00045321]
[1746692494091,0.20057162,99715.0,99714.0,0.0467187]
[1746692494289,0.20057162,99715.0,99709.0,0.0467187]
[1746692494290,0.20108168,99710.0,99709.0,0.0467187]
[1746692495119,0.20678168,99710.0,99709.0,0.0467187]
[1746692495695,0.20678168,99710.0,99709.0,0.0523344]
[1746692496303,0.20678168,99710.0,99709.0,0.0467187]
[1746692496514,0.20978168,99710.0,99709.0,0.0467187]
[1746692496915,0.20678168,99710.0,99709.0,0.0467187]
[1746692497271,0.21378168,99710.0,99709.0,0.0467187]
[1746692497552,0.21078168,99710.0,99709.0,0.0467187]
[1746692497941,0.21078168,99710.0,99702.0,0.21062747]
[1746692497942,0.01002918,99709.0,99702.0,0.20059759]
[1746692498283,0.01002938,99707.0,99703.0,0.00381899]
[1746692498791,0.01002938,99707.0,99703.0,0.40381899]
[1746692499286,0.21061921,99706.0,99703.0,0.40381899]
[1746692499619,0.0156,99705.0,99703.0,0.40381899]
[1746692500037,0.22189375,99704.0,99703.0,0.40381899]
[1746692500175,0.22189375,99704.0,99703.0,0.00381899]
[1746692500523,0.01002998,99701.0,99695.0,0.21109504]
[1746692500726,0.01002998,99701.0,99697.0,0.60060784]
[1746692500875,0.01002998,99701.0,99697.0,0.40380609]
[1746692500876,0.01003009,99700.0,99697.0,0.40380609]
[1746692501077,0.01002978,99703.0,99697.0,0.60441339]
[1746692501712,0.01002988,99702.0,99697.0,0.60441339]
[1746692501894,0.01002988,99702.0,99697.0,0.40380609]
[1746692502106,0.01002998,99701.0,99697.0,0.40380609]
[1746692502430,0.0161,99700.0,99697.0,0.40380609]
[1746692502981,0.22673234,99700.0,99697.0,0.40380609]
[1746692503189,0.0153,99699.0,99697.0,0.40380609]
[1746692503595,0.0153,99699.0,99698.0,0.20060582]
[1746692504007,0.0153,99699.0,99698.0,0.2044103]
[1746692504429,0.002,99699.0,99698.0,0.2044103]
[1746692504648,0.01002998,99701.0,99698.0,0.00380448]
[1746692504865,0.002,99699.0,99698.0,0.00380448]
[1746692505279,0.19368556,99703.0,99698.0,0.00380448]
[1746692505716,0.002,99699.0,99698.0,0.00380448]
[1746692506142,0.19368556,99703.0,99698.0,0.00380448]
[1746692506367,0.0153,99702.0,99698.0,0.00380448]
[1746692506768,0.01002998,99701.0,99698.0,0.00380448]
[1746692507825,0.21062989,99701.0,99698.0,0.00380448]
[1746692508086,0.20060381,99699.0,99698.0,0.00380448]
[1746692508299,0.20060381,99699.0,99697.0,0.4]
[1746692508512,0.0157,99698.0,99697.0,0.4]
[1746692509144,0.0214,99698.0,99697.0,0.4]
[1746692509621,0.0214,99698.0,99695.0,0.00045371]
[1746692509622,0.0151,99696.0,99695.0,0.00045371]
[1746692510183,0.0151,99696.0,99695.0,0.00434635]
[1746692511418,0.0161,99696.0,99695.0,0.00434635]
[1746692511621,0.002,99696.0,99695.0,0.00434635]
[1746692519053,0.002,99696.0,99695.0,0.00045371]
[1746692519654,0.002,99696.0,99695.0,0.00439676]
[1746692519994,0.002,99696.0,99695.0,0.00045371]
[1746692520162,0.002,99696.0,99695.0,0.00439676]
[1746692520369,0.002,99696.0,99695.0,0.00045371]
[1746692520540,0.002,99696.0,99695.0,0.00439867]
[1746692520764,0.002,99696.0,99695.0,0.00045371]
[1746692527167,0.20060961,99697.0,99695.0,0.00045371]
[1746692528349,0.20160961,99697.0,99695.0,0.00045371]
[1746692529995,0.15260961,99697.0,99695.0,0.00045371]
[1746692530862,0.25327653,99697.0,99695.0,0.00045371]
[1746692531072,0.0207,99696.0,99695.0,0.00045371]
[1746692532033,0.02204998,99696.0,99695.0,0.00045371]
[1746692533251,0.00704998,99696.0,99695.0,0.00045371]
[1746692533613,0.01104998,99696.0,99695.0,0.00045371]
[1746692533893,0.01404998,99696.0,99695.0,0.00045371]
[1746692534745,0.01003119,99689.0,99682.0,0.4]
[1746692534964,0.20063601,99683.0,99682.0,0.40045417]
[1746692536923,0.20063601,99683.0,99682.0,0.00045417]
[1746692537340,0.20065815,99672.0,99670.0,0.25997083]
[1746692537563,0.0100328,99673.0,99671.0,3.6743644]
[1746692537782,0.0100328,99673.0,99671.0,3.04232128]
[1746692537783,0.20065815,99672.0,99671.0,3.04232128]
[1746692537959,0.20065815,99672.0,99671.0,0.00402128]
[1746692538298,0.20065815,99672.0,99670.0,5.049865]
[1746692538597,0.20065815,99672.0,99671.0,1.5927]
[1746692538979,0.20065815,99672.0,99671.0,1.0004]
[1746692539353,0.20065815,99672.0,99670.0,0.4]
[1746692539561,0.20065815,99672.0,99671.0,0.0162]
[1746692540222,0.20065815,99672.0,99671.0,0.0172]
[1746692540779,0.20065815,99672.0,99671.0,0.0162]
[1746692542978,0.20065815,99672.0,99671.0,0.4162]
[1746692548301,0.20065815,99672.0,99671.0,0.0162]
[1746692548641,0.2106959,99670.0,99667.0,0.0317]
[1746692548828,0.2106959,99670.0,99669.0,0.34]
[1746692549048,0.2106959,99670.0,99669.0,2.3776]
[1746692549252,0.2106959,99670.0,99669.0,0.9644]
[1746692549453,0.2106959,99670.0,99669.0,0.9304]
[1746692550100,0.2106959,99670.0,99669.0,0.9314]
[1746692550237,0.2106959,99670.0,99669.0,0.9324]
[1746692552402,0.2106959,99670.0,99669.0,1.363]
[1746692552600,0.2106959,99670.0,99669.0,1.3324]
[1746692554447,0.2106959,99670.0,99669.0,0.742]
[1746692554691,0.2106959,99670.0,99669.0,3.3367]
[1746692554867,0.2106959,99670.0,99669.0,2.773]
[1746692555535,0.2106959,99670.0,99669.0,2.1341]
[1746692557849,0.2106959,99670.0,99669.0,1.9496]
[1746692558261,0.2106959,99670.0,99669.0,1.9386]
[1746692558482,0.2106959,99670.0,99669.0,1.1093]
[1746692558688,0.2106959,99670.0,99669.0,0.742]
[1746692562688,0.2106959,99670.0,99669.0,0.002]
[1746692563451,0.2106959,99670.0,99669.0,0.0184]
[1746692565266,0.2106959,99670.0,99669.0,0.002]
[1746692567871,0.21774787,99670.0,99669.0,0.002]
[1746692568072,0.31841479,99670.0,99669.0,0.001]
[1746692568405,0.2006803,99661.0,99660.0,0.11628646]
[1746692568602,0.20068836,99657.0,99656.0,0.0157]
[1746692568818,0.20068836,99657.0,99656.0,5.082065]
[1746692569260,0.20068836,99657.0,99656.0,5.482065]
[1746692570057,0.20268836,99657.0,99656.0,5.48950811]
[1746692572330,0.20268836,99657.0,99656.0,1.86234311]
[1746692576052,0.20268836,99657.0,99656.0,0.43964311]
[1746692576262,0.20268836,99657.0,99656.0,0.82664311]
[1746692577297,0.20268836,99657.0,99656.0,0.85714311]
[1746692577970,0.20268836,99657.0,99656.0,0.82664311]
[1746692578359,0.20268836,99657.0,99656.0,0.84174311]
[1746692579073,0.20268836,99657.0,99656.0,0.85714311]
[1746692579254,0.20268836,99657.0,99656.0,0.40744311]
[1746692580066,0.20268836,99657.0,99656.0,0.42254311]
[1746692581795,0.19336296,99638.0,99632.0,0.0154]
[1746692581979,0.20073065,99636.0,99632.0,0.0154]
[1746692582178,0.01003743,99627.0,99626.0,0.11628646]
[1746692582389,0.01003743,99627.0,99626.0,0.0151]
[1746692582516,0.21078622,99627.0,99626.0,0.3551]
[1746692582711,0.21078622,99627.0,99626.0,0.7689]
[1746692583270,0.2112397,99627.0,99626.0,0.7689]
[1746692583416,0.2112397,99627.0,99626.0,0.77633356]
[1746692583626,0.2112397,99627.0,99626.0,0.42253356]
[1746692583837,0.2112397,99627.0,99626.0,0.40743356]
[1746692584580,0.2112397,99627.0,99626.0,0.42283356]
[1746692584795,0.2112397,99627.0,99626.0,0.40743356]
[1746692585155,0.2112397,99627.0,99626.0,0.40943356]
[1746692585359,0.2112397,99627.0,99626.0,0.002]
[1746692585360,0.2265397,99627.0,99626.0,0.002]
[1746692585987,0.2265397,99627.0,99626.0,0.004]
[1746692586326,0.2265397,99627.0,99626.0,0.002]
[1746692587056,0.2285397,99627.0,99626.0,0.002]
[1746692587260,0.2285397,99627.0,99600.0,2.8538329]
[1746692587261,0.20078746,99608.0,99600.0,2.8538329]
[1746692587477,0.20078746,99608.0,99600.0,2.85624016]
[1746692587863,0.20078746,99608.0,99600.0,2.8462]
[1746692588418,0.20078746,99608.0,99601.0,0.4]
[1746692589059,0.20078746,99608.0,99606.0,0.0164]
[1746692589455,0.20079918,99602.0,99600.0,2.8462]
[1746692589784,0.01003985,99603.0,99601.0,4.509328]
[1746692589956,0.20079918,99602.0,99600.0,2.8462]
[1746692590509,0.20079918,99602.0,99601.0,0.4]
[1746692591596,0.001,99602.0,99601.0,0.4]
[1746692592024,0.20079918,99602.0,99601.0,0.4]
[1746692592304,0.001,99602.0,99601.0,0.4]
[1746692592476,0.17187581,99604.0,99601.0,0.4]
[1746692592847,0.01003844,99617.0,99612.0,0.01003895]
[1746692593044,0.01003854,99616.0,99607.0,0.2365502]
[1746692593256,0.20078708,99608.0,99607.0,0.2365502]
[1746692593523,0.20078708,99608.0,99600.0,3.0827502]
[1746692593524,0.20080039,99602.0,99600.0,3.0827502]
[1746692593664,0.20080039,99602.0,99601.0,0.520461]
[1746692593871,0.20080039,99602.0,99601.0,0.480271]
[1746692594727,0.20080039,99602.0,99601.0,0.880271]
[1746692595159,0.20180039,99602.0,99601.0,0.880271]
[1746692595445,0.20180039,99602.0,99601.0,0.4]
[1746692595648,0.20280039,99602.0,99601.0,0.4]
[1746692597221,0.20280039,99602.0,99601.0,0.40391139]
[1746692599496,0.20280039,99602.0,99601.0,0.00391139]
[1746692599698,0.33446731,99602.0,99601.0,0.00391139]
[1746692601489,0.33246731,99602.0,99601.0,0.00391139]
[1746692601778,0.33246731,99602.0,99601.0,0.01291139]
[1746692601978,0.33246731,99602.0,99601.0,0.00891139]
[1746692602602,1.03660816,99602.0,99601.0,0.00891139]
[1746692602775,1.03660816,99602.0,99601.0,0.00491139]
[1746692602979,1.05524981,99602.0,99601.0,0.00491139]
[1746692603179,1.03660816,99602.0,99601.0,0.00591139]
[1746692603729,1.03660816,99602.0,99601.0,0.00491139]
[1746692604077,1.03660816,99602.0,99601.0,0.01091139]
[1746692604495,1.03660816,99602.0,99601.0,0.00991139]
[1746692604836,1.03660816,99602.0,99601.0,0.01691139]
[1746692607757,1.04362145,99602.0,99601.0,0.01691139]
[1746692609466,1.0130806,99602.0,99601.0,0.01691139]
[1746692609710,0.9980806,99602.0,99601.0,0.01691139]
[1746692610329,0.99106731,99602.0,99601.0,0.01691139]
[1746692610526,1.00716731,99602.0,99601.0,0.01691139]
[1746692611102,0.99106731,99602.0,99601.0,0.01691139]
[1746692615015,0.99809997,99602.0,99601.0,0.01691139]
[1746692616605,0.99809997,99602.0,99600.0,2.67311139]
[1746692616809,0.10769958,99601.0,99600.0,2.67311139]
[1746692617680,0.89040039,99602.0,99600.0,2.70351139]
[1746692617681,0.6896,99602.0,99600.0,2.70351139]
[1746692617797,0.6896,99602.0,99601.0,0.0304]
[1746692619061,0.6916,99602.0,99601.0,0.0304]
[1746692619265,0.6896,99602.0,99601.0,0.0304]
[1746692619650,0.6926,99602.0,99601.0,0.0304]
[1746692620227,0.6926,99602.0,99601.0,0.03439539]
[1746692620623,0.6966,99602.0,99601.0,0.03439539]
[1746692621596,0.007,99602.0,99601.0,0.03439539]
[1746692622770,0.007,99602.0,99601.0,0.01929539]
[1746692627495,0.007,99602.0,99601.0,0.00399539]
[1746692628815,0.10766692,99602.0,99601.0,0.00399539]
[1746692638668,0.13776692,99602.0,99601.0,0.00399539]
[1746692639017,0.14481793,99602.0,99601.0,0.00399539]
[1746692639505,0.14181793,99602.0,99601.0,0.00399539]
[1746692639785,0.13071793,99602.0,99601.0,0.00399539]
[1746692640544,0.12671793,99602.0,99601.0,0.00399539]
[1746692640796,0.13071793,99602.0,99601.0,0.00399539]
[1746692641030,0.14515673,99602.0,99601.0,0.00399539]
[1746692642259,0.66515673,99602.0,99601.0,0.00399539]
[1746692644042,0.68035673,99602.0,99601.0,0.00399539]
[1746692644255,0.68045878,99602.0,99601.0,0.00399539]
[1746692645369,0.67645878,99602.0,99601.0,0.00399539]
[1746692645572,1.36205878,99602.0,99601.0,0.00399539]
[1746692645803,1.36205878,99602.0,99601.0,0.00799539]
[1746692647716,1.36205878,99602.0,99601.0,0.01299539]
[1746692651114,1.34685878,99602.0,99601.0,0.01299539]
[1746692654168,1.34685878,99602.0,99601.0,0.01292686]
[1746692656517,1.33185878,99602.0,99601.0,0.01292686]
[1746692660103,1.34815878,99602.0,99601.0,0.01292686]
[1746692660976,1.43236067,99602.0,99601.0,0.01292686]
[1746692661187,1.44766067,99602.0,99601.0,0.01292686]
[1746692661701,1.36215878,99602.0,99601.0,0.01292686]
[1746692662118,1.34685878,99602.0,99601.0,0.01292686]
[1746692662943,1.33185878,99602.0,99601.0,0.01292686]
[1746692664607,1.31731793,99602.0,99601.0,0.01292686]
[1746692664793,1.31731793,99602.0,99601.0,0.04342686]
[1746692667019,1.31731793,99602.0,99601.0,0.02822686]
[1746692668350,1.31731793,99602.0,99601.0,0.04402686]
[1746692670243,1.31731793,99602.0,99601.0,0.02822686]
[1746692670447,1.31731793,99602.0,99601.0,0.01292686]
[1746692671063,1.31731793,99602.0,99601.0,0.02912686]
[1746692671623,1.31731793,99602.0,99601.0,0.01292686]
[1746692673633,1.31731793,99602.0,99601.0,0.04432686]
[1746692675075,1.31731793,99602.0,99601.0,0.01292686]
[1746692677785,0.20080119,99601.0,99600.0,0.68603825]
[1746692678102,0.30146811,99601.0,99600.0,0.68603825]
[1746692678864,0.30851912,99601.0,99600.0,0.68603825]
[1746692679637,0.30851912,99601.0,99600.0,0.71733825]
[1746692680299,0.30951912,99601.0,99600.0,0.71733825]
[1746692682637,0.30951912,99601.0,99600.0,0.68603825]
[1746692682838,0.30951912,99601.0,99600.0,0.49269869]
[1746692684190,0.30951912,99601.0,99600.0,0.28917457]
[1746692684885,0.30951912,99601.0,99600.0,0.28917449]
[1746692686766,0.30951912,99601.0,99600.0,0.32077449]
[1746692689066,0.2088522,99601.0,99600.0,0.32077449]
[1746692689462,0.1499853,99601.0,99600.0,0.32077449]
[1746692689665,0.14293429,99601.0,99600.0,0.72077449]
[1746692689828,0.14193429,99601.0,99600.0,0.72077449]
[1746692690234,0.14593429,99601.0,99600.0,0.72077449]
[1746692690427,0.14593429,99601.0,99600.0,0.73946629]
[1746692691036,0.14593429,99601.0,99600.0,0.74881347]
[1746692691426,0.14593429,99601.0,99600.0,0.73012167]
[1746692691980,0.15093429,99601.0,99600.0,0.73112167]
[1746692693546,0.15093429,99601.0,99600.0,0.74981602]
[1746692694961,0.15093429,99601.0,99600.0,0.73112167]
[1746692695366,0.15093429,99601.0,99600.0,0.73112167]
[1746692695798,0.15093429,99601.0,99600.0,0.72177449]
[1746692698082,0.15093429,99601.0,99600.0,0.33112084]
[1746692698624,0.15093429,99601.0,99600.0,0.73112084]
[1746692698771,0.15093429,99601.0,99600.0,0.53284774]
[1746692698974,0.21085153,99597.0,99594.0,0.01354608]
[1746692699282,0.21085153,99597.0,99595.0,0.0186906]
[1746692699707,0.21085153,99597.0,99596.0,0.0186906]
[1746692700111,0.21585153,99597.0,99596.0,0.4186906]
[1746692700318,0.21585153,99597.0,99596.0,0.41882688]
[1746692700570,0.21385153,99597.0,99596.0,0.41882688]
[1746692700988,0.21685153,99597.0,99596.0,0.41882688]
[1746692701482,0.21385153,99597.0,99596.0,0.41882688]
[1746692701710,0.21785153,99597.0,99596.0,0.41882688]
[1746692702058,0.21385153,99597.0,99596.0,0.45072688]
[1746692702294,0.21785153,99597.0,99596.0,0.45172688]
[1746692702499,0.21785153,99597.0,99596.0,0.43572688]
[1746692702700,0.21785153,99597.0,99596.0,0.01982688]
[1746692705276,0.01704046,99597.0,99596.0,0.01982688]
[1746692705483,0.007,99597.0,99596.0,0.05242688]
[1746692705939,0.527,99597.0,99596.0,0.05242688]
[1746692707993,0.52,99602.0,99599.0,0.01004026]
[1746692708195,0.52,99602.0,99600.0,8.85279021]
[1746692708399,0.52,99602.0,99601.0,10.081265]
[1746692708573,0.52,99602.0,99601.0,10.0999556]
[1746692709166,0.523,99602.0,99601.0,10.0999556]
[1746692709375,0.525,99602.0,99601.0,10.0999556]
[1746692709608,0.523,99602.0,99601.0,10.0999556]
[1746692709830,0.52,99602.0,99601.0,10.0999556]
[1746692710023,0.521,99602.0,99601.0,10.0999556]
[1746692710234,0.521,99602.0,99601.0,10.4999556]
[1746692711169,0.522,99602.0,99601.0,10.4999556]
[1746692711863,0.521,99602.0,99601.0,10.50928992]
[1746692712008,0.20075818,99623.0,99615.0,0.0304]
[1746692712219,0.20075818,99623.0,99618.0,0.0304]
[1746692712220,0.01003824,99619.0,99618.0,0.0304]
[1746692712422,0.01003814,99620.0,99619.0,0.0312]
[1746692712825,0.01003814,99620.0,99619.0,0.05922492]
[1746692713025,0.01003814,99620.0,99619.0,0.04392492]
[1746692713452,0.01003814,99620.0,99619.0,0.02802492]
[1746692715003,0.01603814,99620.0,99619.0,0.02802492]
[1746692715392,0.01603814,99620.0,99619.0,0.04302492]
[1746692715592,0.01603814,99620.0,99619.0,0.0336906]
[1746692716203,0.01603814,99620.0,99619.0,0.04302492]
[1746692716545,0.01603814,99620.0,99619.0,0.02802492]